fUST/lending_fUST_20250830
["ID","MTS","AMOUNT","RATE_DAILY","PERIOD"]
[382203059,1756543857183,-480.0,0.00020799,2]
[382203060,1756543857432,-480.0,0.00020799,2]
[382203061,1756543857468,-610.26,0.00020799,2]
[382203062,1756543857481,-1233.39,0.00020799,2]
[382203063,1756543857491,-698.86,0.00020799,2]
[382203064,1756543857500,-480.0,0.00020799,2]
[382203065,1756543857510,-480.0,0.00020799,2]
[382203066,1756543857519,-480.0,0.00020799,2]
[382203067,1756543857531,-480.0,0.00020799,2]
[382203068,1756543857540,-480.0,0.00020799,2]
[382203069,1756543857550,-480.0,0.00020799,2]
[382203070,1756543857561,-480.0,0.00020799,2]
[382203071,1756543857571,-1141.75,0.00020799,2]
[382203072,1756543857584,-480.0,0.00020799,2]
[382203073,1756543857593,-349.10653712,0.00020799,2]
[382203074,1756543857602,-480.0,0.00020799,2]
[382203075,1756543857611,-1320.51,0.00020799,2]
[382203076,1756543857621,-480.0,0.00020799,2]
[382203077,1756543857630,-480.0,0.00020799,2]
[382203078,1756543857640,-1580.04,0.00020799,2]
[382203079,1756543857651,-480.0,0.00020799,2]
[382203080,1756543857660,-1147.14,0.00020799,2]
[382203081,1756543857670,-480.0,0.00020799,2]
[382203082,1756543857680,-774.13,0.00020799,2]
[382203083,1756543857690,-480.0,0.00020799,2]
[382203084,1756543857699,-480.0,0.00020799,2]
[382203085,1756543857708,-480.0,0.00020799,2]
[382203086,1756543857718,-480.0,0.00020799,2]
[382203087,1756543857727,-480.0,0.00020799,2]
[382203088,1756543857738,-480.0,0.00020799,2]
[382203089,1756543857747,-480.0,0.00020799,2]
[382203090,1756543857755,-480.0,0.00020799,2]
[382203091,1756543857764,-480.0,0.00020799,2]
[382203092,1756543857773,-480.0,0.00020799,2]
[382203093,1756543857780,-608.67,0.00020799,2]
[382203094,1756543857788,-480.0,0.00020799,2]
[382203095,1756543857796,-480.0,0.00020799,2]
[382203096,1756543857804,-480.0,0.00020799,2]
[382203097,1756543857812,-354.26489825,0.00020799,2]
[382203098,1756543857820,-1151.84,0.00020799,2]
[382203099,1756543857829,-480.0,0.00020799,2]
[382203100,1756543857837,-511.65,0.00020799,2]
[382203101,1756543857845,-480.0,0.00020799,2]
[382203102,1756543857854,-498.4,0.00020799,2]
[382203103,1756543857864,-480.0,0.00020799,2]
[382203104,1756543857873,-492.72,0.00020799,2]
[382203105,1756543857882,-480.0,0.00020799,2]
[382203106,1756543857892,-480.0,0.00020799,2]
[382203107,1756543857901,-480.0,0.00020799,2]
[382203108,1756543857910,-427.43064087,0.00020799,2]
[382203109,1756543857919,-1785.59,0.00020799,2]
[382203110,1756543857928,-480.0,0.00020799,2]
[382203111,1756543857939,-480.0,0.00020801,2]
[382203112,1756543857947,-480.0,0.00020801,2]
[382203113,1756543857956,-480.0,0.00020801,2]
[382203114,1756543857966,-480.0,0.00020801,2]
[382203115,1756543857975,-1255.48,0.00020801,2]
[382203116,1756543857985,-572.6,0.00020801,2]
[382203117,1756543857994,-1134.7,0.00020801,2]
[382203118,1756543858004,-731.7,0.00020801,2]
[382203119,1756543858013,-1031.75,0.00020801,2]
[382203120,1756543858022,-480.0,0.00020801,2]
[382203121,1756543858031,-480.0,0.00020801,2]
[382203122,1756543858041,-940.43,0.00020801,2]
[382203123,1756543858050,-1355.85,0.00020801,2]
[382203124,1756543858059,-1363.91,0.00020801,2]
[382203125,1756543858069,-480.0,0.00020801,2]
[382203126,1756543858078,-480.0,0.00020801,2]
[382203127,1756543858087,-799.45,0.00020801,2]
[382203128,1756543858097,-480.0,0.00020801,2]
[382203129,1756543858106,-664.04,0.00020801,2]
[382203130,1756543858116,-480.0,0.00020801,2]
[382203131,1756543858125,-480.0,0.00020801,2]
[382203132,1756543858135,-480.0,0.00020801,2]
[382203133,1756543858144,-480.0,0.00020801,2]
[382203134,1756543858153,-480.0,0.00020801,2]
[382203135,1756543858162,-1163.49,0.00020801,2]
[382203136,1756543858172,-480.0,0.00020801,2]
[382203137,1756543858181,-480.0,0.00020801,2]
[382203138,1756543858190,-501.23,0.00020801,2]
[382203139,1756543858200,-480.0,0.00020801,2]
[382203140,1756543858209,-480.0,0.00020801,2]
[382203141,1756543858219,-480.0,0.00020801,2]
[382203142,1756543858228,-480.0,0.00020801,2]
[382203143,1756543858237,-994.91,0.00020801,2]
[382203144,1756543858247,-1067.56,0.00020801,2]
[382203145,1756543858256,-480.0,0.00020801,2]
[382203146,1756543858265,-480.0,0.00020801,2]
[382203147,1756543858275,-542.37,0.00020801,2]
[382203148,1756543858284,-480.0,0.00020801,2]
[382203149,1756543858293,-480.0,0.00020801,2]
[382203150,1756543858302,-480.0,0.00020801,2]
[382203151,1756543858311,-480.0,0.00020801,2]
[382203152,1756543858320,-480.0,0.00020801,2]
[382203153,1756543858329,-480.0,0.00020801,2]
[382203154,1756543858339,-480.0,0.00020801,2]
[382203155,1756543858348,-520.07,0.00020801,2]
[382203156,1756543858357,-568.94,0.00020801,2]
[382203157,1756543858367,-480.0,0.00020801,2]
[382203158,1756543858376,-480.0,0.00020801,2]
[382203159,1756543858385,-1123.37,0.00020803,2]
[382203160,1756543858395,-568.72647219,0.00020803,2]
[382203161,1756543858404,-480.0,0.00020803,2]
[382203162,1756543858413,-480.0,0.00020803,2]
[382203163,1756543858422,-1491.47,0.00020803,2]
[382203164,1756543858433,-480.0,0.00020803,2]
[382203165,1756543858442,-480.0,0.00020803,2]
[382203166,1756543858451,-480.0,0.00020803,2]
[382203167,1756543858461,-480.0,0.00020803,2]
[382203168,1756543858470,-480.0,0.00020803,2]
[382203169,1756543858480,-480.0,0.00020803,2]
[382203170,1756543858489,-480.0,0.00020803,2]
[382203171,1756543858498,-330.75330205,0.00020803,2]
[382203172,1756543858508,-480.0,0.00020803,2]
[382203173,1756543858517,-585.59,0.00020803,2]
[382203174,1756543858528,-489.43,0.00020803,2]
[382203175,1756543858537,-639.97,0.00020803,2]
[382203176,1756543858546,-481.54,0.00020803,2]
[382203177,1756543858556,-480.0,0.00020803,2]
[382203178,1756543858566,-480.0,0.00020803,2]
[382203179,1756543858578,-480.0,0.00020803,2]
[382203180,1756543858591,-480.0,0.00020803,2]
[382203181,1756543858601,-480.0,0.00020803,2]
[382203182,1756543858610,-480.0,0.00020803,2]
[382203183,1756543858621,-488.38,0.00020803,2]
[382203184,1756543858630,-480.0,0.00020803,2]
[382203185,1756543858639,-480.0,0.00020803,2]
[382203186,1756543858648,-480.0,0.00020803,2]
[382203187,1756543858658,-480.0,0.00020803,2]
[382203188,1756543858668,-480.0,0.00020803,2]
[382203189,1756543858678,-706.42,0.00020803,2]
[382203190,1756543858687,-484.47,0.00020803,2]
[382203191,1756543858697,-480.0,0.00020803,2]
[382203192,1756543858707,-558.42,0.00020803,2]
[382203193,1756543858716,-480.0,0.00020803,2]
[382203194,1756543858725,-480.0,0.00020803,2]
[382203195,1756543858735,-480.0,0.00020803,2]
[382203196,1756543858744,-480.0,0.00020803,2]
[382203197,1756543858754,-302.30781634,0.00020803,2]
[382203198,1756543858763,-480.0,0.00020803,2]
[382203199,1756543858773,-525.84726862,0.00020803,2]
[382203200,1756543858782,-1000.0,0.00020803,2]
[382203201,1756543858793,-480.0,0.00020803,2]
[382203202,1756543858802,-480.0,0.00020803,2]
[382203203,1756543858811,-500.0,0.00020803,2]
[382203204,1756543858821,-480.0,0.00020803,2]
[382203205,1756543858831,-480.0,0.00020803,2]
[382203206,1756543858841,-480.0,0.00020803,2]
[382203207,1756543858851,-480.0,0.00020803,2]
[382203208,1756543858861,-480.0,0.00020803,2]
[382203209,1756543858871,-480.0,0.00020803,2]
[382203210,1756543858881,-480.0,0.00020803,2]
[382203211,1756543858890,-654.97,0.00020803,2]
[382203212,1756543858900,-820.26,0.00020803,2]
[382203213,1756543858909,-173.79073331,0.00020803,2]
[382203214,1756543858919,-480.0,0.00020803,2]
[382203215,1756543858928,-480.0,0.00020803,2]
[382203216,1756543858938,-802.89,0.00020803,2]
[382203217,1756543858948,-480.0,0.00020803,2]
[382203218,1756543858958,-480.0,0.00020803,2]
[382203219,1756543858968,-480.0,0.00020803,2]
[382203220,1756543858978,-833.3,0.00020803,2]
[382203221,1756543858988,-480.0,0.00020803,2]
[382203222,1756543858998,-480.0,0.00020803,2]
[382203223,1756543859008,-480.0,0.00020803,2]
[382203224,1756543859018,-480.0,0.00020803,2]
[382203225,1756543859027,-480.0,0.00020803,2]
[382203226,1756543859037,-480.0,0.00020803,2]
[382203227,1756543859046,-480.0,0.00020803,2]
[382203228,1756543859056,-480.0,0.00020803,2]
[382203229,1756543859066,-1113.63,0.00020803,2]
[382203230,1756543859075,-480.0,0.00020803,2]
[382203231,1756543859085,-480.0,0.00020803,2]
[382203232,1756543859094,-480.0,0.00020803,2]
[382203233,1756543859103,-932.77,0.00020803,2]
[382203234,1756543859113,-480.0,0.00020803,2]
[382203235,1756543859122,-907.03,0.00020803,2]
[382203236,1756543859132,-480.0,0.00020803,2]
[382203237,1756543859141,-480.0,0.00020803,2]
[382203238,1756543859151,-480.0,0.00020803,2]
[382203239,1756543859160,-480.0,0.00020803,2]
[382203240,1756543859170,-480.0,0.00020803,2]
[382203241,1756543859179,-480.0,0.00020803,2]
[382203242,1756543859190,-480.0,0.00020803,2]
[382203243,1756543859200,-480.0,0.00020803,2]
[382203244,1756543859209,-480.0,0.00020803,2]
[382203245,1756543859218,-151.0,0.00020803,2]
[382203246,1756543859228,-151.0,0.00020803,2]
[382203247,1756543859237,-482.28453591,0.00020803,2]
[382203248,1756543859247,-480.0,0.00020803,2]
[382203249,1756543859257,-480.0,0.00020803,2]
[382203250,1756543859267,-480.0,0.00020803,2]
[382203251,1756543859276,-480.0,0.00020803,2]
[382203252,1756543859286,-480.0,0.00020803,2]
[382203253,1756543859295,-480.0,0.00020803,2]
[382203254,1756543859305,-806.65,0.00020803,2]
[382203255,1756543859315,-480.0,0.00020803,2]
[382203256,1756543859326,-490.14841126,0.00020803,2]
[382203257,1756543859336,-480.0,0.00020803,2]
[382203258,1756543859345,-1472.12,0.00020803,2]
[382203259,1756543859355,-480.0,0.00020803,2]
[382203260,1756543859365,-483.89,0.00020803,2]
[382203261,1756543859375,-480.0,0.00020803,2]
[382203262,1756543859385,-480.0,0.00020803,2]
[382203263,1756543859394,-635.39,0.00020803,2]
[382203264,1756543859404,-480.0,0.00020803,2]
[382203265,1756543859414,-480.0,0.00020803,2]
[382203266,1756543859424,-480.0,0.00020803,2]
[382203267,1756543859434,-480.0,0.00020803,2]
[382203268,1756543859444,-480.0,0.00020803,2]
[382203269,1756543859453,-480.0,0.00020803,2]
[382203270,1756543859464,-480.0,0.00020803,2]
[382203271,1756543859473,-480.0,0.00020803,2]
[382203272,1756543859483,-480.0,0.00020803,2]
[382203273,1756543859492,-480.0,0.00020803,2]
[382203274,1756543859502,-480.0,0.00020803,2]
[382203275,1756543859511,-480.0,0.00020803,2]
[382203276,1756543859521,-480.0,0.00020803,2]
[382203277,1756543859531,-496.85,0.00020803,2]
[382203278,1756543859540,-480.0,0.00020803,2]
[382203279,1756543859550,-480.0,0.00020803,2]
[382203280,1756543859560,-480.0,0.00020803,2]
[382203281,1756543859569,-496.81,0.00020804,2]
[382203282,1756543859583,-809.83,0.00020804,2]
[382203283,1756543859592,-1023.75,0.00020804,2]
[382203284,1756543859602,-1207.63,0.00020804,2]
[382203285,1756543859612,-480.0,0.00020804,2]
[382203286,1756543859623,-480.0,0.00020804,2]
[382203287,1756543859633,-480.0,0.00020804,2]
[382203288,1756543859642,-480.0,0.00020804,2]
[382203289,1756543859653,-480.0,0.00020804,2]
[382203290,1756543859662,-481.77385395,0.00020804,2]
[382203291,1756543859672,-480.0,0.00020804,2]
[382203292,1756543859682,-1000.0,0.00020821,2]
[382203293,1756543859692,-520.39784858,0.00020821,2]
[382203294,1756543859702,-500.0,0.00020821,2]
[382203295,1756543859711,-1000.0,0.00020821,2]
[382203296,1756543859722,-501.31195499,0.00020821,2]
[382203297,1756543859732,-1000.0,0.00020821,2]
[382203298,1756543859742,-500.0,0.00020821,2]
[382203299,1756543859752,-355.85596122,0.00020821,2]
[382203300,1756543859762,-500.0,0.00020821,2]
[382203301,1756543859771,-1000.0,0.00020821,2]
[382203302,1756543859781,-1000.0,0.00020821,2]
[382203303,1756543859790,-1000.0,0.00020821,2]
[382203304,1756543859800,-1466.46254764,0.00020933,2]
[382203305,1756543859810,-35090.49828077,0.00020933,2]
[382203306,1756543860105,-8164.13777793,0.00020933,2]
[382203307,1756543860115,-6716.24205822,0.00020973,2]
[382203308,1756543860125,-298.73199353,0.00020986,2]
[382203309,1756543860134,-151.0,0.00020986,2]
[382203310,1756543860144,-151.0,0.00020986,2]
[382203311,1756543860154,-151.0,0.00020986,2]
[382203312,1756543860164,-151.88174151,0.00020986,2]
[382203313,1756543860174,-151.0,0.00020987,2]
[382203314,1756543860185,-2987.7028459,0.00021,2]
[382203315,1756543860194,-480.0,0.00021054,2]
[382203316,1756543860204,-1087.51,0.00021054,2]
[382203317,1756543860214,-480.0,0.00021054,2]
[382203318,1756543860224,-990.03,0.00021054,2]
[382203319,1756543860233,-480.0,0.00021055,2]
[382203320,1756543860244,-861.66,0.00021055,2]
[382203321,1756543860255,-922.2,0.00021055,2]
[382203322,1756543860264,-1690.52,0.00021055,2]
[382203323,1756543860274,-1785.2,0.00021055,2]
[382203324,1756543860284,-948.81,0.00021055,2]
[382203325,1756543860293,-480.0,0.00021055,2]
[382203326,1756543860303,-480.0,0.00021055,2]
[382203327,1756543860316,-2414.54,0.00021055,2]
[382203328,1756543860327,-480.0,0.00021056,2]
[382203329,1756543860336,-480.0,0.00021056,2]
[382203330,1756543860348,-480.0,0.00021056,2]
[382203331,1756543860358,-563.39,0.00021056,2]
[382203332,1756543860370,-480.0,0.00021056,2]
[382203333,1756543860380,-480.0,0.00021056,2]
[382203334,1756543860390,-1479.36,0.00021056,2]
[382203335,1756543860400,-476.07858938,0.00021056,2]
[382203336,1756543860409,-265.66183539,0.00021056,2]
[382203337,1756543860419,-480.0,0.00021056,2]
[382203338,1756543860429,-480.0,0.00021056,2]
[382203339,1756543860440,-524.57012887,0.00021056,2]
[382203340,1756543860450,-480.0,0.00021056,2]
[382203341,1756543860460,-480.0,0.00021056,2]
[382203342,1756543860470,-480.0,0.00021056,2]
[382203343,1756543860480,-516.84,0.00021056,2]
[382203344,1756543860490,-480.0,0.00021056,2]
[382203345,1756543860501,-480.0,0.00021056,2]
[382203346,1756543860513,-480.0,0.00021056,2]
[382203347,1756543860523,-480.0,0.00021056,2]
[382203348,1756543860534,-529.37,0.00021056,2]
[382203349,1756543860544,-480.0,0.00021056,2]
[382203350,1756543860555,-837.27,0.00021056,2]
[382203351,1756543860748,-480.0,0.00021056,2]
[382203352,1756543860759,-480.0,0.00021056,2]
[382203353,1756543860770,-482.94448399,0.00021056,2]
[382203354,1756543860780,-604.67,0.00021056,2]
[382203355,1756543860791,-535.8399489,0.00021056,2]
[382203356,1756543860801,-480.0,0.00021056,2]
[382203357,1756543860811,-480.0,0.00021056,2]
[382203358,1756543860821,-480.0,0.00021056,2]
[382203359,1756543860831,-480.0,0.00021056,2]
[382203360,1756543860840,-480.0,0.00021056,2]
[382203361,1756543860850,-480.0,0.00021056,2]
[382203362,1756543860860,-697.57,0.00021056,2]
[382203363,1756543860871,-818.08,0.00021056,2]
[382203364,1756543860880,-615.37,0.00021056,2]
[382203365,1756543860890,-1007.9,0.00021056,2]
[382203366,1756543860901,-480.0,0.00021056,2]
[382203367,1756543860910,-576.9,0.00021056,2]
[382203368,1756543860921,-984.23,0.00021056,2]
[382203369,1756543860931,-480.0,0.00021056,2]
[382203370,1756543860942,-199.27275927,0.00021056,2]
[382203371,1756543860951,-480.0,0.00021056,2]
[382203372,1756543860961,-480.0,0.00021056,2]
[382203373,1756543860971,-480.0,0.00021056,2]
[382203374,1756543860981,-480.0,0.00021056,2]
[382203375,1756543860991,-480.0,0.00021056,2]
[382203376,1756543861001,-480.0,0.00021057,2]
[382203377,1756543861011,-1066.94,0.00021057,2]
[382203378,1756543861021,-766.09,0.00021057,2]
[382203379,1756543861032,-480.0,0.00021057,2]
[382203380,1756543861042,-995.45,0.00021057,2]
[382203381,1756543861053,-480.0,0.00021057,2]
[382203382,1756543861062,-1167.52,0.00021057,2]
[382203383,1756543861072,-1204.25,0.00021057,2]
[382203384,1756543861082,-825.92,0.00021057,2]
[382203385,1756543861092,-3998.12,0.00021057,2]
[382203386,1756543861103,-970.44,0.00021057,2]
[382203387,1756543861112,-480.0,0.00021057,2]
[382203388,1756543861123,-480.0,0.00021057,2]
[382203389,1756543861133,-1476.44,0.00021057,2]
[382203390,1756543861143,-2883.07,0.00021057,2]
[382203391,1756543861152,-987.47,0.00021057,2]
[382203392,1756543861163,-2042.88,0.00021057,2]
[382203393,1756543861173,-1231.38,0.00021057,2]
[382203394,1756543861185,-480.0,0.00021057,2]
[382203395,1756543861195,-888.94,0.00021057,2]
[382203396,1756543861207,-480.0,0.00021067,2]
[382203397,1756543861219,-480.0,0.00021067,2]
[382203398,1756543861229,-223.18454228,0.00021067,2]
[382203399,1756543861240,-480.0,0.00021067,2]
[382203400,1756543861249,-480.0,0.00021067,2]
[382203401,1756543861259,-936.42,0.00021067,2]
[382203402,1756543861268,-1257.12,0.00021067,2]
[382203403,1756543861277,-501.42,0.00021067,2]
[382203404,1756543861287,-1103.43,0.00021067,2]
[382203405,1756543861296,-1077.88,0.00021067,2]
[382203406,1756543861306,-480.0,0.00021067,2]
[382203407,1756543861318,-480.0,0.00021068,2]
[382203408,1756543861328,-480.0,0.00021068,2]
[382203409,1756543861339,-754.48,0.00021068,2]
[382203410,1756543861350,-604.06,0.00021068,2]
[382203411,1756543861360,-935.88,0.00021068,2]
[382203412,1756543861369,-1150.56,0.00021068,2]
[382203413,1756543861379,-990.08,0.00021068,2]
[382203414,1756543861389,-939.9,0.00021068,2]
[382203415,1756543861399,-480.0,0.00021068,2]
[382203416,1756543861409,-480.0,0.00021068,2]
[382203417,1756543861420,-593.16,0.00021068,2]
[382203418,1756543861430,-996.84,0.00021068,2]
[382203419,1756543861440,-649.58,0.00021068,2]
[382203420,1756543861450,-480.0,0.00021068,2]
[382203421,1756543861459,-1070.49,0.00021068,2]
[382203422,1756543861470,-1190.2,0.00021068,2]
[382203423,1756543861480,-480.0,0.00021068,2]
[382203424,1756543861490,-480.0,0.00021068,2]
[382203425,1756543861499,-480.0,0.00021068,2]
[382203426,1756543861509,-1066.37,0.00021068,2]
[382203427,1756543861518,-480.0,0.00021068,2]
[382203428,1756543861528,-1399.67,0.00021068,2]
[382203429,1756543861538,-885.12,0.00021068,2]
[382203430,1756543861548,-480.0,0.00021068,2]
[382203431,1756543861558,-1285.54,0.00021068,2]
[382203432,1756543861569,-1331.47,0.00021068,2]
[382203433,1756543861581,-1502.12,0.00021068,2]
[382203434,1756543861591,-480.0,0.00021068,2]
[382203435,1756543861600,-480.0,0.00021068,2]
[382203436,1756543861610,-655.08,0.00021068,2]
[382203437,1756543861620,-1072.84,0.00021068,2]
[382203438,1756543861630,-480.0,0.00021068,2]
[382203439,1756543861640,-480.0,0.00021068,2]
[382203440,1756543861650,-886.71,0.00021068,2]
[382203441,1756543861660,-480.0,0.00021068,2]
[382203442,1756543861670,-537.89,0.00021068,2]
[382203443,1756543861679,-480.0,0.00021068,2]
[382203444,1756543861690,-539.26,0.00021068,2]
[382203445,1756543861700,-1186.1,0.00021068,2]
[382203446,1756543861710,-484.99,0.00021068,2]
[382203447,1756543861720,-480.0,0.00021068,2]
[382203448,1756543861730,-785.97,0.00021068,2]
[382203449,1756543861739,-493.54,0.00021068,2]
[382203450,1756543861750,-996.5,0.00021068,2]
[382203451,1756543861760,-480.0,0.00021068,2]
[382203452,1756543861769,-480.0,0.00021068,2]
[382203453,1756543861779,-631.5,0.00021068,2]
[382203454,1756543861789,-956.33,0.00021068,2]
[382203455,1756543861799,-480.0,0.00021069,2]
[382203456,1756543861809,-480.0,0.00021069,2]
[382203457,1756543861819,-480.0,0.00021069,2]
[382203458,1756543861829,-563.2,0.00021069,2]
[382203459,1756543861840,-956.53,0.00021069,2]
[382203460,1756543861850,-480.0,0.00021069,2]
[382203461,1756543861860,-1063.97,0.00021069,2]
[382203462,1756543861870,-480.0,0.00021069,2]
[382203463,1756543861879,-1246.5,0.00021069,2]
[382203464,1756543861889,-480.0,0.00021069,2]
[382203465,1756543861898,-4740.55,0.00021069,2]
[382203466,1756543861909,-1775.81,0.00021069,2]
[382203467,1756543861919,-1087.43,0.00021069,2]
[382203468,1756543861928,-507.78,0.00021069,2]
[382203469,1756543861939,-1277.81,0.00021069,2]
[382203470,1756543861948,-6468.03,0.00021069,2]
[382203471,1756543861958,-1158.54,0.00021069,2]
[382203472,1756543861968,-2328.8,0.00021069,2]
[382203473,1756543861978,-5925.0,0.00021069,2]
[382203474,1756543861988,-675.82,0.00021069,2]
[382203475,1756543861998,-1018.4,0.00021072,2]
[382203476,1756543862009,-1127.19,0.00021072,2]
[382203477,1756543862020,-915.42,0.00021072,2]
[382203478,1756543862034,-480.0,0.00021072,2]
[382203479,1756543862044,-2794.57,0.00021072,2]
[382203480,1756543862055,-1158.02,0.00021072,2]
[382203481,1756543862065,-4004.89,0.00021072,2]
[382203482,1756543862075,-963.97071977,0.00021072,2]
[382203483,1756543908636,962.04485475,0.00020132,2]
[382203484,1756543993257,689.67281725,0.000199,2]
[382203485,1756544050572,176.031232,0.00019233,2]
[382203486,1756544091833,418.35063577,0.00020147,2]
[382203487,1756544091857,581.64936423,0.00020147,2]
[382203488,1756544174092,9418.36063577,0.00020131,2]
[382203489,1756544174115,10000.01,0.00020131,2]
[382203490,1756544174138,10000.01,0.00020131,2]
[382203491,1756544174160,10000.01,0.00020131,2]
[382203492,1756544174387,10000.01,0.00020131,2]
[382203493,1756544174411,10000.01,0.00020131,2]
[382203494,1756544174434,10000.01,0.00020131,2]
[382203495,1756544174457,10000.01,0.00020131,2]
[382203496,1756544174479,10000.01,0.00020131,2]
[382203497,1756544174501,10000.01,0.00020131,2]
[382203498,1756544174528,270581.54936423,0.00020131,2]
[382203499,1756544177056,666.68372339,0.000199,2]
[382203500,1756544188955,841.78924788,0.0002013,2]
[382203501,1756544244940,645.62980896,0.00020146,2]
[382203502,1756544341689,8512.59094316,0.00020129,2]
[382203503,1756544341709,10000.01,0.00020129,2]
[382203504,1756544341730,10000.01,0.00020129,2]
[382203505,1756544341751,10000.01,0.00020129,2]
[382203506,1756544341771,10000.01,0.00020129,2]
[382203507,1756544341792,10000.01,0.00020129,2]
[382203508,1756544341812,10000.01,0.00020129,2]
[382203509,1756544341832,10000.01,0.00020129,2]
[382203510,1756544341853,10000.01,0.00020129,2]
[382203511,1756544341873,10000.01,0.00020129,2]
[382203512,1756544341894,271487.31905684,0.00020129,2]
[382203513,1756544361839,680.78475564,0.000199,2]
[382203515,1756544468060,298.73199353,0.00020147,2]
[382203518,1756544505938,9020.49325083,0.00020129,2]
[382203519,1756544505963,10000.01,0.00020129,2]
[382203520,1756544505986,10000.01,0.00020129,2]
[382203521,1756544506010,10000.01,0.00020129,2]
[382203522,1756544506033,10000.01,0.00020129,2]
[382203523,1756544506056,10000.01,0.00020129,2]
[382203524,1756544506081,10000.01,0.00020129,2]
[382203525,1756544506103,10000.01,0.00020129,2]
[382203526,1756544506124,10000.01,0.00020129,2]
[382203527,1756544506148,10000.01,0.00020129,2]
[382203528,1756544506172,246154.0012557,0.00020129,2]
[382203529,1756544658106,256.012245,0.00013699,2]
[382203531,1756544770167,1452.0,0.00027397,120]
[382203532,1756544880552,270.94,0.00015984,2]
[382203533,1756544905022,151.0,0.00027397,120]
[382203537,1756545013847,152.0,0.00027397,120]
[382203548,1756545031701,-782.1314594,0.00019167,2]
[382203550,1756545031713,-155.9585406,0.000199,2]
[382203555,1756545031760,-553.4092622,0.000199,2]
[382203557,1756545031777,-203.80465392,0.00020028,2]
[382203559,1756545031796,-306.0800074,0.00020032,2]
[382203561,1756545031805,-1011.00585517,0.00020086,2]
[382203563,1756545031815,-736.56559193,0.0002009,2]
[382203565,1756545031825,-306.08000739,0.00020124,2]
[382203567,1756545031843,-300.0,0.00020126,2]
[382203570,1756545031852,-300.0,0.00020126,2]
[382203572,1756545031862,-693.26262083,0.00020126,2]
[382203598,1756545038192,-269.42605915,0.00020126,2]
[382203601,1756545038203,-230.57394085,0.00020126,2]
[382203603,1756545038214,-204.93681199,0.00020126,2]
[382203605,1756545038227,-409.72518669,0.00020126,2]
[382203607,1756545038236,-500.0,0.00020126,2]
[382203609,1756545038246,-120.18009419,0.00020126,2]
[382203613,1756545038275,-464.97862713,0.00020126,2]
[382203615,1756545038285,-500.0,0.00020126,2]
[382203617,1756545038294,-500.0,0.00020126,2]
[382203619,1756545038307,-500.0,0.00020126,2]
[382203621,1756545038317,-500.0,0.00020126,2]
[382203623,1756545038327,-500.0,0.00020126,2]
[382203625,1756545038337,-500.0,0.00020126,2]
[382203627,1756545038346,-500.0,0.00020126,2]
[382203629,1756545038356,-171.45548597,0.00020126,2]
[382203631,1756545038366,-500.0,0.00020126,2]
[382203633,1756545038376,-500.0,0.00020126,2]